Workbook

Sheet Summary
B1: Lower | C1: Moderate | D1: Above Moderate | E1: Total
A2: RHNA | B2: 1000 | C2: 1500 | D2: 2000 | E2: =SUM(B2:D2) -> 4500
A3: Housing Element Sites Inventory
A4: Original Housing Element Capacity (Calculated) | B4: =SUM('1. Sites Inventory'!B:B) -> 1166 | C4: =SUM('1. Sites Inventory'!C:C) -> 732 | D4: =SUM('1. Sites Inventory'!D:D) -> 2019 | E4: =SUM(B4:D4) -> 3917
A5: Entitled | B5: =SUM('1. Sites Inventory'!G:G) -> 2 | C5: =SUM('1. Sites Inventory'!H:H) -> 5 | D5: =SUM('1. Sites Inventory'!I:I) -> 7 | E5: 14
A6: Difference in Units for Entitled Projects (Capacity - Entitled) | B6: =SUM('1. Sites Inventory'!K:K) -> 2 | C6: =SUM('1. Sites Inventory'!L:L) -> -1 | D6: =SUM('1. Sites Inventory'!M:M) -> 1 | E6: 2
A7: Remaining Capacity | B7: =B4-B5+B6 -> 1166 | C7: =C4-C5+C6 -> 726 | D7: =D4-D5+D6 -> 2013 | E7: =E4-E5 -> 3903
A8: Total Capacity (Adjusted) | B8: =SUM(B7,B5) -> 1168 | C8: =SUM(C7,C5) -> 731 | D8: 2020 | E8: =SUM(B8:D8) -> 3919
A9: 2. Development Activity on Sites Not in HE | B9: =SUM('2. Development on Other Sites'!E:E) -> 11 | C9: =SUM('2. Development on Other Sites'!F:F) -> 16 | D9: =SUM('2. Development on Other Sites'!G:G) -> 201 | E9: =SUM(B9:D9) -> 228
A10: 3. ADU Projection | B10: ='3. ADUs'!B3 -> 150 | C10: ='3. ADUs'!C3 -> 250 | D10: ='3. ADUs'!D3 -> 100 | E10: 500
A11: Total Housing Capacity | B11: =SUM(B9:B10) -> 161 | C11: =SUM(C9:C10) -> 266 | D11: =SUM(D9:D10) -> 301 | E11: 728
A13: Progress Toward Meeting RHNA (Completed Projects) | B13: =SUM(B5,B9,'3. ADUs'!B15) -> 63 | C13: =SUM(C5,C9,'3. ADUs'!C15) -> 111 | D13: =SUM(D5,D9,'3. ADUs'!D15) -> 258 | E13: =SUM(E5,E9,'3. ADUs'!E15) -> 432
A14: Remaining RHNA | B14: =B13-B2 -> -937 | C14: =C13-C2 -> -1389 | D14: =D13-D2 -> -1742 | E14: =E13-E2 -> -4068
A17: Surplus/Deficit Capacity to Meet Unmet RHNA | B17: =B14+B11 -> -776 | C17: =C14+C11 -> -1123 | D17: -1441 | E17: =E14+E11 -> -3340

Sheet 1. Sites Inventory
A1: ORIGINAL SITES INVENTORY | B1: Capacity Counted in Housing Element (DO NOT EDIT) | G1: Current Entitlement | K1: Difference From Original Inventoried Capacity
A2: Assessor Parcel Number | B2: Lower Income Capacity | C2: Moderate Income Capacity | D2: Above Moderate Income Capacity | E2: Total Capacity | F2: Site Status | G2: Planned and Approved Lower Income | H2: Planned and Approved Moderate Income | I2: Planned and Approved Above Moderate Income | J2: Total Planned and Approved | K2: Net Capacity Lower Income | L2: Net Capacity Moderate Income | M2: Net Capacity Above Moderate Income | N2: Total Net Capacity | O2: Notes (APN Change, Project Name, etc.)
A3: XXX-XXX-XXX-X | B3: 0 | C3: 3 | D3: 3 | E3: =SUM(B3:D3) -> 6 | F3: Pending Project | G3: 1 | H3: 4 | I3: 6 | J3: 0 | K3: =IF($F3<>"Available", G3-B3, "") -> 1 | L3: =IF($F3<>"Available", H3-C3, "") -> 1 | M3: =IF($F3<>"Available", I3-D3, "") -> 3 | N3: =SUM(K3:M3) -> 5
A4: XXX-XXX-XXX-X | B4: 0 | C4: 3 | D4: 3 | E4: =SUM(B4:D4) -> 6 | F4: Completed Project | G4: 1 | H4: 1 | I4: 1 | J4: 0 | K4: =IF($F4<>"Available", G4-B4, "") -> 1 | L4: -2 | M4: =IF($F4<>"Available", I4-D4, "") -> -2 | N4: =SUM(K4:M4) -> -3
A5: XXX-XXX-XXX-X | B5: 0 | C5: 0 | D5: 0 | E5: 0 | F5: Available | G5: 0 | H5: 0 | I5: 0 | J5: =G5+H5+I5 -> 0 | K5: =IF($F5<>"Available", G5-B5, "") ->  | L5: =IF($F5<>"Available", H5-C5, "") ->  | M5: =IF($F5<>"Available", I5-D5, "") ->  | N5: =IF($F5<>"Available", J5-E5, "") -> 
A6: XXX-XXX-XXX-X | B6: 15 | C6: 6 | D6: 16 | E6: 37 | F6: Available | G6: 0 | H6: 0 | I6: 0 | J6: 0
A7: XXX-XXX-XXX-X | B7: 0 | C7: 0 | D7: 0 | E7: 0 | F7: Available | G7: 0 | H7: 0 | I7: 0 | J7: 0
A8: XXX-XXX-XXX-X | B8: 0 | C8: 0 | D8: 0 | E8: 0 | F8: Available | G8: 0 | H8: 0 | I8: 0 | J8: 0
A9: XXX-XXX-XXX-X | B9: 0 | C9: 0 | D9: 0 | E9: 0 | F9: Available | G9: 0 | H9: 0 | I9: 0 | J9: 0
A10: XXX-XXX-XXX-X | B10: 20 | C10: 8 | D10: 21 | E10: 49 | F10: Available | G10: 0 | H10: 0 | I10: 0 | J10: 0
A11: XXX-XXX-XXX-X | B11: 0 | C11: 2 | D11: 2 | E11: 4 | F11: Available | G11: 0 | H11: 0 | I11: 0 | J11: 0
A12: XXX-XXX-XXX-X | B12: 20 | C12: 8 | D12: 21 | E12: 49 | F12: Available | G12: 0 | H12: 0 | I12: 0 | J12: 0
A13: XXX-XXX-XXX-X | B13: 16 | C13: 6 | D13: 16 | E13: 38 | F13: Available | G13: 0 | H13: 0 | I13: 0 | J13: 0
A14: XXX-XXX-XXX-X | B14: 5 | C14: 2 | D14: 6 | E14: 13 | F14: Available | G14: 0 | H14: 0 | I14: 0 | J14: 0
A15: XXX-XXX-XXX-X | B15: 17 | C15: 6 | D15: 17 | E15: 40 | F15: Available | G15: 0 | H15: 0 | I15: 0 | J15: 0
A16: XXX-XXX-XXX-X | B16: 20 | C16: 8 | D16: 22 | E16: 50 | F16: Available | G16: 0 | H16: 0 | I16: 0 | J16: 0
A17: XXX-XXX-XXX-X | B17: 0 | C17: 0 | D17: 0 | E17: 0 | F17: Available | G17: 0 | H17: 0 | I17: 0 | J17: 0
A18: XXX-XXX-XXX-X | B18: 0 | C18: 0 | D18: 0 | E18: 0 | F18: Available | G18: 0 | H18: 0 | I18: 0 | J18: 0
A19: XXX-XXX-XXX-X | B19: 0 | C19: 0 | D19: 0 | E19: 0 | F19: Available | G19: 0 | H19: 0 | I19: 0 | J19: 0
A20: XXX-XXX-XXX-X | B20: 0 | C20: 0 | D20: 0 | E20: 0 | F20: Available | G20: 0 | H20: 0 | I20: 0 | J20: 0
A21: XXX-XXX-XXX-X | B21: 0 | C21: 0 | D21: 0 | E21: 0 | F21: Available | G21: 0 | H21: 0 | I21: 0 | J21: 0
A22: XXX-XXX-XXX-X | B22: 30 | C22: 12 | D22: 31 | E22: 73 | F22: Available | G22: 0 | H22: 0 | I22: 0 | J22: 0
A23: XXX-XXX-XXX-X | B23: 0 | C23: 0 | D23: 0 | E23: 0 | F23: Available | G23: 0 | H23: 0 | I23: 0 | J23: 0
A24: XXX-XXX-XXX-X | B24: 0 | C24: 0 | D24: 0 | E24: 0 | F24: Available | G24: 0 | H24: 0 | I24: 0 | J24: 0
A25: XXX-XXX-XXX-X | B25: 0 | C25: 0 | D25: 0 | E25: 0 | F25: Available | G25: 0 | H25: 0 | I25: 0 | J25: 0
A26: XXX-XXX-XXX-X | B26: 0 | C26: 0 | D26: 0 | E26: 0 | F26: Available | G26: 0 | H26: 0 | I26: 0 | J26: 0
A27: XXX-XXX-XXX-X | B27: 0 | C27: 0 | D27: 7 | E27: 7 | F27: Available | G27: 0 | H27: 0 | I27: 0 | J27: 0
A28: XXX-XXX-XXX-X | B28: 41 | C28: 16 | D28: 42 | E28: 99 | F28: Available | G28: 0 | H28: 0 | I28: 0 | J28: 0
A29: XXX-XXX-XXX-X | B29: 19 | C29: 7 | D29: 20 | E29: 46 | F29: Available | G29: 0 | H29: 0 | I29: 0 | J29: 0
A30: XXX-XXX-XXX-X | B30: 8 | C30: 3 | D30: 9 | E30: 20 | F30: Available | G30: 0 | H30: 0 | I30: 0 | J30: 0
A31: XXX-XXX-XXX-X | B31: 29 | C31: 11 | D31: 30 | E31: 70 | F31: Available | G31: 0 | H31: 0 | I31: 0 | J31: 0
A32: XXX-XXX-XXX-X | B32: 0 | C32: 8 | D32: 8 | E32: 16 | F32: Available | G32: 0 | H32: 0 | I32: 0 | J32: 0
A33: XXX-XXX-XXX-X | B33: 14 | C33: 6 | D33: 15 | E33: 35 | F33: Available | G33: 0 | H33: 0 | I33: 0 | J33: 0
A34: XXX-XXX-XXX-X | B34: 0 | C34: 0 | D34: 6 | E34: 6 | F34: Available | G34: 0 | H34: 0 | I34: 0 | J34: 0
A35: XXX-XXX-XXX-X | B35: 0 | C35: 1 | D35: 1 | E35: 2 | F35: Available | G35: 0 | H35: 0 | I35: 0 | J35: 0
A36: XXX-XXX-XXX-X | B36: 0 | C36: 0 | D36: 8 | E36: 8 | F36: Available | G36: 0 | H36: 0 | I36: 0 | J36: 0
A37: XXX-XXX-XXX-X | B37: 0 | C37: 0 | D37: 6 | E37: 6 | F37: Available | G37: 0 | H37: 0 | I37: 0 | J37: 0
A38: XXX-XXX-XXX-X | B38: 0 | C38: 0 | D38: 6 | E38: 6 | F38: Available | G38: 0 | H38: 0 | I38: 0 | J38: 0
A39: XXX-XXX-XXX-X | B39: 0 | C39: 0 | D39: 6 | E39: 6 | F39: Available | G39: 0 | H39: 0 | I39: 0 | J39: 0
A40: XXX-XXX-XXX-X | B40: 0 | C40: 0 | D40: 10 | E40: 10 | F40: Available | G40: 0 | H40: 0 | I40: 0 | J40: 0
A41: XXX-XXX-XXX-X | B41: 0 | C41: 0 | D41: 7 | E41: 7 | F41: Available | G41: 0 | H41: 0 | I41: 0 | J41: 0
A42: XXX-XXX-XXX-X | B42: 0 | C42: 0 | D42: 5 | E42: 5 | F42: Available | G42: 0 | H42: 0 | I42: 0 | J42: 0
A43: XXX-XXX-XXX-X | B43: 0 | C43: 0 | D43: 5 | E43: 5 | F43: Available | G43: 0 | H43: 0 | I43: 0 | J43: 0
A44: XXX-XXX-XXX-X | B44: 0 | C44: 0 | D44: 6 | E44: 6 | F44: Available | G44: 0 | H44: 0 | I44: 0 | J44: 0
A45: XXX-XXX-XXX-X | B45: 0 | C45: 0 | D45: 6 | E45: 6 | F45: Available | G45: 0 | H45: 0 | I45: 0 | J45: 0
A46: XXX-XXX-XXX-X | B46: 0 | C46: 0 | D46: 3 | E46: 3 | F46: Available | G46: 0 | H46: 0 | I46: 0 | J46: 0
A47: XXX-XXX-XXX-X | B47: 0 | C47: 0 | D47: 5 | E47: 5 | F47: Available | G47: 0 | H47: 0 | I47: 0 | J47: 0
A48: XXX-XXX-XXX-X | B48: 0 | C48: 0 | D48: 2 | E48: 2 | F48: Available | G48: 0 | H48: 0 | I48: 0 | J48: 0
A49: XXX-XXX-XXX-X | B49: 0 | C49: 0 | D49: 2 | E49: 2 | F49: Available | G49: 0 | H49: 0 | I49: 0 | J49: 0
A50: XXX-XXX-XXX-X | B50: 0 | C50: 0 | D50: 6 | E50: 6 | F50: Available | G50: 0 | H50: 0 | I50: 0 | J50: 0
A51: XXX-XXX-XXX-X | B51: 0 | C51: 0 | D51: 11 | E51: 11 | F51: Available | G51: 0 | H51: 0 | I51: 0 | J51: 0
A52: XXX-XXX-XXX-X | B52: 0 | C52: 0 | D52: 2 | E52: 2 | F52: Available | G52: 0 | H52: 0 | I52: 0 | J52: 0
A53: XXX-XXX-XXX-X | B53: 0 | C53: 0 | D53: 2 | E53: 2 | F53: Available | G53: 0 | H53: 0 | I53: 0 | J53: 0
A54: XXX-XXX-XXX-X | B54: 0 | C54: 0 | D54: 5 | E54: 5 | F54: Available | G54: 0 | H54: 0 | I54: 0 | J54: 0
A55: XXX-XXX-XXX-X | B55: 44 | C55: 17 | D55: 46 | E55: 107 | F55: Available | G55: 0 | H55: 0 | I55: 0 | J55: 0
A56: XXX-XXX-XXX-X | B56: 44 | C56: 17 | D56: 46 | E56: 107 | F56: Available | G56: 0 | H56: 0 | I56: 0 | J56: 0
A57: XXX-XXX-XXX-X | B57: 16 | C57: 6 | D57: 17 | E57: 39 | F57: Available | G57: 0 | H57: 0 | I57: 0 | J57: 0
A58: XXX-XXX-XXX-X | B58: 9 | C58: 4 | D58: 10 | E58: 23 | F58: Available | G58: 0 | H58: 0 | I58: 0 | J58: 0
A59: XXX-XXX-XXX-X | B59: 50 | C59: 20 | D59: 52 | E59: 122 | F59: Available | G59: 0 | H59: 0 | I59: 0 | J59: 0
A60: XXX-XXX-XXX-X | B60: 33 | C60: 13 | D60: 34 | E60: 80 | F60: Available | G60: 0 | H60: 0 | I60: 0 | J60: 0
A61: XXX-XXX-XXX-X | B61: 52 | C61: 20 | D61: 53 | E61: 125 | F61: Available | G61: 0 | H61: 0 | I61: 0 | J61: 0
A62: XXX-XXX-XXX-X | B62: 0 | C62: 1 | D62: 1 | E62: 2 | F62: Available | G62: 0 | H62: 0 | I62: 0 | J62: 0
A63: XXX-XXX-XXX-X | B63: 25 | C63: 10 | D63: 26 | E63: 61 | F63: Available | G63: 0 | H63: 0 | I63: 0 | J63: 0
A64: XXX-XXX-XXX-X | B64: 8 | C64: 3 | D64: 8 | E64: 19 | F64: Available | G64: 0 | H64: 0 | I64: 0 | J64: 0
A65: XXX-XXX-XXX-X | B65: 42 | C65: 17 | D65: 44 | E65: 103 | F65: Available | G65: 0 | H65: 0 | I65: 0 | J65: 0
A66: XXX-XXX-XXX-X | B66: 0 | C66: 24 | D66: 24 | E66: 48 | F66: Available | G66: 0 | H66: 0 | I66: 0 | J66: 0
A67: XXX-XXX-XXX-X | B67: 50 | C67: 20 | D67: 52 | E67: 122 | F67: Available | G67: 0 | H67: 0 | I67: 0 | J67: 0
A68: XXX-XXX-XXX-X | B68: 58 | C68: 23 | D68: 60 | E68: =SUM(B68:D68) -> 141 | F68: Available | G68: 0 | H68: 0 | I68: 0 | J68: 0
A69: XXX-XXX-XXX-X | B69: 11 | C69: 4 | D69: 11 | E69: 26 | F69: Available | G69: 0 | H69: 0 | I69: 0 | J69: =G69+H69+I69 -> 0 | K69: =IF($F69<>"Available", G69-B69, "") ->  | L69: =IF($F69<>"Available", H69-C69, "") ->  | M69: =IF($F69<>"Available", I69-D69, "") ->  | N69: =IF($F69<>"Available", J69-E69, "") -> 
A70: XXX-XXX-XXX-X | B70: 12 | C70: 5 | D70: 13 | E70: 30 | F70: Available | G70: 0 | H70: 0 | I70: 0 | J70: 0
A71: XXX-XXX-XXX-X | B71: 0 | C71: 41 | D71: 41 | E71: 82 | F71: Available | G71: 0 | H71: 0 | I71: 0 | J71: 0
A72: XXX-XXX-XXX-X | B72: 0 | C72: 39 | D72: 39 | E72: 78 | F72: Available | G72: 0 | H72: 0 | I72: 0 | J72: 0
A73: XXX-XXX-XXX-X | B73: 0 | C73: 9 | D73: 9 | E73: 18 | F73: Available | G73: 0 | H73: 0 | I73: 0 | J73: 0
A74: XXX-XXX-XXX-X | B74: 0 | C74: 13 | D74: 13 | E74: 26 | F74: Available | G74: 0 | H74: 0 | I74: 0 | J74: 0
A75: XXX-XXX-XXX-X | B75: 38 | C75: 15 | D75: 39 | E75: 92 | F75: Available | G75: 0 | H75: 0 | I75: 0 | J75: 0
A76: XXX-XXX-XXX-X | B76: 21 | C76: 8 | D76: 22 | E76: 51 | F76: Available | G76: 0 | H76: 0 | I76: 0 | J76: 0
A77: XXX-XXX-XXX-X | B77: 0 | C77: 0 | D77: 216 | E77: 216 | F77: Available | G77: 0 | H77: 0 | I77: 0 | J77: 0
A78: XXX-XXX-XXX-X | B78: 36 | C78: 14 | D78: 38 | E78: 88 | F78: Available | G78: 0 | H78: 0 | I78: 0 | J78: 0
A79: XXX-XXX-XXX-X | B79: 23 | C79: 9 | D79: 24 | E79: 56 | F79: Available | G79: 0 | H79: 0 | I79: 0 | J79: 0
A80: XXX-XXX-XXX-X | B80: 98 | C80: 38 | D80: 100 | E80: 236 | F80: Available | G80: 0 | H80: 0 | I80: 0 | J80: 0
A81: XXX-XXX-XXX-X | B81: 0 | C81: 5 | D81: 5 | E81: 10 | F81: Available | G81: 0 | H81: 0 | I81: 0 | J81: 0
A82: XXX-XXX-XXX-X | B82: 0 | C82: 0 | D82: 134 | E82: 134 | F82: Available | G82: 0 | H82: 0 | I82: 0 | J82: 0
A83: XXX-XXX-XXX-X | B83: 4 | C83: 0 | D83: 70 | E83: 74 | F83: Available | G83: 0 | H83: 0 | I83: 0 | J83: 0
A84: XXX-XXX-XXX-X | B84: 0 | C84: 10 | D84: 10 | E84: 20 | F84: Available | G84: 0 | H84: 0 | I84: 0 | J84: 0
A85: XXX-XXX-XXX-X | B85: 0 | C85: 5 | D85: 5 | E85: 10 | F85: Available | G85: 0 | H85: 0 | I85: 0 | J85: 0
A86: XXX-XXX-XXX-X | B86: 0 | C86: 10 | D86: 10 | E86: 20 | F86: Available | G86: 0 | H86: 0 | I86: 0 | J86: 0
A87: XXX-XXX-XXX-X | B87: 0 | C87: 3 | D87: 3 | E87: 6 | F87: Available | G87: 0 | H87: 0 | I87: 0 | J87: 0
A88: XXX-XXX-XXX-X | B88: 14 | C88: 6 | D88: 15 | E88: 35 | F88: Available | G88: 0 | H88: 0 | I88: 0 | J88: 0
A89: XXX-XXX-XXX-X | B89: 126 | C89: 50 | D89: 129 | E89: 305 | F89: Available | G89: 0 | H89: 0 | I89: 0 | J89: 0
A90: XXX-XXX-XXX-X | B90: 0 | C90: 6 | D90: 6 | E90: 12 | F90: Available | G90: 0 | H90: 0 | I90: 0 | J90: 0
A91: XXX-XXX-XXX-X | B91: 11 | C91: 4 | D91: 11 | E91: 26 | F91: Available | G91: 0 | H91: 0 | I91: 0 | J91: 0
A92: XXX-XXX-XXX-X | B92: 56 | C92: 22 | D92: 58 | E92: 136 | F92: Available | G92: 0 | H92: 0 | I92: 0 | J92: 0
A93: XXX-XXX-XXX-X | B93: 0 | C93: 4 | D93: 4 | E93: 8 | F93: Available | G93: 0 | H93: 0 | I93: 0 | J93: 0
A94: XXX-XXX-XXX-X | B94: 17 | C94: 7 | D94: 18 | E94: 42 | F94: Available | G94: 0 | H94: 0 | I94: 0 | J94: 0
A95: XXX-XXX-XXX-X | B95: 14 | C95: 5 | D95: 15 | E95: 34 | F95: Available | G95: 0 | H95: 0 | I95: 0 | J95: 0
A96: XXX-XXX-XXX-X | B96: 0 | C96: 9 | D96: 9 | E96: 18 | F96: Available | G96: 0 | H96: 0 | I96: 0 | J96: 0
A97: XXX-XXX-XXX-X | B97: 0 | C97: 31 | D97: 31 | E97: 62 | F97: Available | G97: 0 | H97: 0 | I97: 0 | J97: 0
A98: XXX-XXX-XXX-X | B98: 0 | C98: 38 | D98: 38 | E98: 76 | F98: Available | G98: 0 | H98: 0 | I98: 0 | J98: 0
A99: XXX-XXX-XXX-X | B99: 0 | C99: 9 | D99: 9 | E99: 18 | F99: Available | G99: 0 | H99: 0 | I99: 0 | J99: 0
A100: XXX-XXX-XXX-X | B100: 0 | C100: 0 | D100: 0 | E100: 0 | F100: Available | G100: 0 | H100: 0 | I100: 0 | J100: 0
A101: XXX-XXX-XXX-X | B101: 0 | C101: 0 | D101: 0 | E101: 0 | F101: Available | G101: 0 | H101: 0 | I101: 0 | J101: 0
A102: XXX-XXX-XXX-X | B102: 0 | C102: 0 | D102: 0 | E102: 0 | F102: Available | G102: 0 | H102: 0 | I102: 0 | J102: 0
A103: XXX-XXX-XXX-X | B103: 0 | C103: 2 | D103: 2 | E103: 4 | F103: Available | G103: 0 | H103: 0 | I103: 0 | J103: 0

Sheet 2. Development on Other Sites
A1: PROJECTS ON OTHER SITES | E1: Current Entitlement
A2: Assessor Parcel Number | B2: JURS_TRACKING_ID | C2: Project Name | D2: Address | E2: Lower Income Capacity | F2: Moderate Income Capacity | G2: Above Moderate Income Capacity | H2: Total Capacity | I2: Site Status | J2: Notes (Approval Date, Status, etc.)
A3: XXX-XXX-XXX-X | E3: 0 | F3: 0 | G3: 0 | H3: =SUM(E3:G3) -> 0 | I3: Pending Project
A4: XXX-XXX-XXX-X | E4: 0 | F4: 0 | G4: 0 | H4: =SUM(E4:G4) -> 0 | I4: Pending Project
A5: XXX-XXX-XXX-X | E5: 0 | F5: 0 | G5: 0 | H5: 0 | I5: Pending Project
A6: XXX-XXX-XXX-X | E6: 0 | F6: 0 | G6: 0 | H6: 0 | I6: Pending Project
A7: XXX-XXX-XXX-X | E7: 1 | F7: 1 | G7: 1 | H7: 3 | I7: Completed Project
A8: XXX-XXX-XXX-X | E8: 0 | F8: 0 | G8: 0 | H8: 0
A9: XXX-XXX-XXX-X | E9: 0 | F9: 0 | G9: 0 | H9: 0
A10: XXX-XXX-XXX-X | E10: 10 | F10: 15 | G10: 200 | H10: 225
A11: XXX-XXX-XXX-X | E11: 0 | F11: 0 | G11: 0 | H11: 0
A12: XXX-XXX-XXX-X | E12: 0 | F12: 0 | G12: 0 | H12: 0
A13: XXX-XXX-XXX-X | E13: 0 | F13: 0 | G13: 0 | H13: 0
A14: XXX-XXX-XXX-X | E14: 0 | F14: 0 | G14: 0 | H14: 0
A15: XXX-XXX-XXX-X | E15: 0 | F15: 0 | G15: 0 | H15: 0
A16: XXX-XXX-XXX-X | E16: 0 | F16: 0 | G16: 0 | H16: 0
A17: XXX-XXX-XXX-X | E17: 0 | F17: 0 | G17: 0 | H17: 0
A18: XXX-XXX-XXX-X | E18: 0 | F18: 0 | G18: 0 | H18: 0
A19: XXX-XXX-XXX-X | E19: 0 | F19: 0 | G19: 0 | H19: 0
A20: XXX-XXX-XXX-X | E20: 0 | F20: 0 | G20: 0 | H20: 0
A21: XXX-XXX-XXX-X | E21: 0 | F21: 0 | G21: 0 | H21: 0
A22: XXX-XXX-XXX-X | E22: 0 | F22: 0 | G22: 0 | H22: 0

Sheet 3. ADUs
A1: ADU Production
B2: Lower Income Capacity | C2: Moderate Income Capacity | D2: Above Moderate Income Capacity | E2: Total Capacity
A3: ADU Projection | B3: 150 | C3: 250 | D3: 100 | E3: =SUM(B3:D3) -> 500
A4: ADU Production from APR
A5: June 30, 2020-End of 2020 | B5: 5 | C5: 15 | D5: 5 | E5: =SUM(B5:D5) -> 25
A6: 2021 | B6: 10 | C6: 20 | D6: 10 | E6: 40
A7: 2022 | B7: 15 | C7: 25 | D7: 15 | E7: 55
A8: 2023 | B8: 20 | C8: 30 | D8: 20 | E8: =SUM(B8:D8) -> 70
A9: 2024 | B9: 0 | C9: 0 | D9: 0 | E9: =SUM(B9:D9) -> 0
A10: 2025 | B10: 0 | C10: 0 | D10: 0 | E10: 0
A11: 2026 | B11: 0 | C11: 0 | D11: 0 | E11: 0
A12: 2027 | B12: 0 | C12: 0 | D12: 0 | E12: 0
A13: 2028 | B13: 0 | C13: 0 | D13: 0 | E13: 0
A14: Jan 1, 2029-April 15, 2029 | B14: 0 | C14: 0 | D14: 0 | E14: 0
A15: Total Production | B15: =SUM(B5:B14) -> 50 | C15: =SUM(C5:C14) -> 90 | D15: 50 | E15: =SUM(B15:D15) -> 190
